bitfinex/quotes_ETHUSD_20220201
["timestamp","ask_amount","ask_price","bid_price","bid_amount"]
[1643688238808,1.528077,2757.2,2756.7,0.523]
[1643688239008,1.528077,2757.2,2757.0,0.40323345]
[1643688239212,1.528077,2757.2,2756.7,0.823]
[1643688240208,1.528077,2757.2,2757.0,0.38340668]
[1643688240612,1.528077,2757.2,2757.0,0.68340668]
[1643688240809,1.1716558,2757.3,2757.1,0.523]
[1643688241015,1.1716558,2757.3,2757.1,0.823]
[1643688241809,1.70920216,2757.2,2757.1,0.523]
[1643688242273,1.52800216,2757.2,2757.1,0.823]
[1643688243070,1.1716558,2757.3,2757.1,0.823]
[1643688247015,2.08726252,2757.2,2757.1,0.823]
[1643688247221,2.08726252,2757.2,2757.1,0.3]
[1643688247416,1.1716558,2757.3,2757.1,0.3]
[1643688247815,1.1716558,2757.3,2756.9,0.6421347]
[1643688248315,1.1716558,2757.3,2756.9,0.3421347]
[1643688249558,3.94852674,2757.2,2756.7,0.1812]
[1643688249759,5.55,2756.8,2756.7,0.1812]
[1643688250159,2.4861298,2757.0,2756.7,0.1771256]
[1643688250360,2.91026153,2756.9,2756.7,0.1771256]
[1643688250560,0.95371303,2756.8,2756.7,0.1771256]
[1643688250760,3.07464782,2756.8,2756.7,0.1771256]
[1643688250960,3.07464782,2756.8,2756.3,0.43219593]
[1643688251362,0.95371303,2756.8,2756.3,0.43078887]
[1643688252161,0.95371303,2756.8,2756.3,0.73078887]
[1643688252606,0.95371303,2756.8,2756.3,1.03078887]
[1643688254714,0.95371303,2756.8,2756.3,0.73078887]
[1643688255524,3.0857026,2756.8,2756.3,0.3]
[1643688255739,1.52820241,2756.7,2756.3,0.3]
[1643688255909,1.52820241,2756.7,2756.0,0.6]
[1643688256109,3.17186869,2756.8,2756.0,1.3]
[1643688256708,0.95371303,2756.8,2756.0,1.3]
[1643688257964,0.95371303,2756.8,2756.1,0.38206989]
[1643688258162,0.95371303,2756.8,2756.1,0.68206989]
[1643688262910,0.95371303,2756.8,2756.1,0.86326989]
[1643688263714,1.08817,2757.0,2756.1,0.86326989]
[1643688263913,4.88711017,2757.2,2756.2,2.77144239]
[1643688263914,3.9673,2757.2,2756.2,2.77144239]
[1643688264117,3.9673,2757.2,2756.2,3.07144239]
[1643688264311,3.9673,2757.2,2756.3,1.3]
[1643688264553,3.9673,2757.2,2756.4,2.47444228]
[1643688264761,3.9673,2757.2,2756.4,24.12444228]
[1643688264961,2.3231558,2757.3,2756.5,1.33523356]
[1643688265160,2.3231558,2757.3,2756.6,2.54612433]
[1643688265357,2.3231558,2757.3,2756.7,1.00556752]
[1643688265558,2.3231558,2757.3,2756.8,0.523]
[1643688266160,1.1716558,2757.3,2756.9,1.08782]
[1643688266365,1.1716558,2757.3,2757.0,2.56031775]
[1643688266560,1.1716558,2757.3,2757.1,0.1812]
[1643688266767,1.1716558,2757.3,2757.1,1.7042]
[1643688266960,1.1716558,2757.3,2757.1,1.0042]
[1643688267159,1.1716558,2757.3,2757.2,0.38494864]
[1643688268213,1.1716558,2757.3,2757.2,1.38494864]
[1643688268418,4.3216558,2757.3,2757.1,0.523]
[1643688268620,1.1716558,2757.3,2757.1,1.523]
[1643688268820,1.1716558,2757.3,2757.1,0.523]
[1643688269427,1.1716558,2757.3,2757.2,0.3776325]
[1643688270539,1.1716558,2757.3,2757.2,0.6776325]
[1643688270920,1.1716558,2757.3,2756.9,1.8132]
[1643688271121,0.1812,2757.2,2756.9,1.8132]
[1643688271963,0.1812,2757.2,2757.1,0.41454102]
[1643688272162,1.1716558,2757.3,2757.1,0.41454102]
[1643688273370,1.1716558,2757.3,2757.1,1.32117102]
[1643688273567,1.1716558,2757.3,2757.1,1.62117102]
[1643688273966,1.17050345,2757.3,2757.1,1.62117102]
[1643688278612,1.17050345,2757.3,2757.1,1.92117102]
[1643688278811,1.17050345,2757.3,2757.1,1.62117102]
[1643688279475,1.17050345,2757.3,2757.2,2.47522636]
[1643688279681,1.17050345,2757.3,2757.2,0.523]
[1643688279886,1.17050345,2757.3,2757.2,1.523]
[1643688281181,1.17050345,2757.3,2757.2,0.523]
[1643688281386,1.17050345,2757.3,2757.2,1.523]
[1643688281581,1.17050345,2757.3,2757.2,0.523]
[1643688281783,1.17050345,2757.3,2757.2,1.523]
[1643688282225,1.17050345,2757.3,2757.2,2.0042]
[1643688282389,1.17050345,2757.3,2757.2,0.823]
[1643688282589,1.17050345,2757.3,2757.2,1.523]
[1643688282786,1.17050345,2757.3,2757.2,1.823]
[1643688282986,1.17050345,2757.3,2757.2,1.523]
[1643688283414,1.17050345,2757.3,2757.2,0.523]
[1643688283614,1.17050345,2757.3,2757.2,1.823]
[1643688284116,1.17050345,2757.3,2757.2,1.523]
[1643688285117,1.17050345,2757.3,2757.2,1.823]
[1643688285317,1.17050345,2757.3,2757.2,1.523]
[1643688285717,1.16675499,2757.3,2757.2,1.523]
[1643688286117,1.16675499,2757.3,2757.2,1.823]
[1643688286319,1.16675499,2757.3,2757.2,1.523]
[1643688287170,1.16675499,2757.3,2757.2,1.823]
[1643688287361,1.16675499,2757.3,2757.2,1.523]
[1643688287567,1.16675499,2757.3,2757.2,1.823]
[1643688287761,1.16675499,2757.3,2757.2,1.523]
[1643688288966,0.1812,2758.2,2757.5,0.90646]
[1643688289188,0.1812,2758.2,2757.6,3.16573591]
[1643688289365,1.3869,2758.3,2757.7,0.55149362]
[1643688289565,1.3869,2758.3,2758.2,0.55149362]
[1643688289964,0.1812,2758.3,2758.2,0.55149362]
[1643688290172,0.1812,2758.3,2758.2,0.3902]
[1643688290367,1.70861248,2758.3,2758.2,0.3902]
[1643688290565,2.13309811,2758.3,2758.2,0.3902]
[1643688291017,0.1812,2758.3,2758.2,0.3902]
[1643688291811,3.78696384,2758.3,2758.2,0.3902]
[1643688292015,1.70864301,2758.3,2758.2,0.3902]
[1643688292418,0.1812,2758.3,2758.2,0.3902]
[1643688294461,1.17454464,2758.4,2758.2,0.3902]
[1643688295764,2.08099464,2758.4,2758.2,0.3902]
[1643688295964,3.92740057,2758.3,2758.2,0.3902]
[1643688297174,5.3,2758.2,2757.8,0.01177955]
[1643688297372,1.52740057,2758.1,2757.8,0.01177955]
[1643688298306,1.08230173,2757.9,2757.8,0.01177955]
[1643688300610,2.60988907,2757.9,2757.8,0.01177955]
[1643688300809,4.01318907,2757.9,2757.8,0.01177955]
[1643688303182,4.31318907,2757.9,2757.8,0.01177955]
[1643688303386,4.72521364,2757.9,2757.8,7.955e-05]
[1643688303586,6.55,2757.8,2756.5,0.1812]
[1643688303782,1.8138349,2757.5,2756.3,0.1812]
[1643688303987,2.92968734,2757.4,2756.3,0.1812]
[1643688304183,1.52758734,2757.3,2756.3,0.1812]
[1643688304382,1.30221294,2756.6,2756.3,0.1812]
[1643688305084,12.88569,2757.2,2756.4,0.523]
[1643688305085,11.7976,2757.2,2756.4,0.523]
[1643688305909,0.36604128,2757.1,2756.5,0.90681]
[1643688306106,0.36604128,2757.1,2756.6,0.7042]
[1643688307126,12.4705317,2757.2,2756.7,0.90674]
[1643688307311,11.7976,2757.2,2756.7,0.90674]
[1643688307510,3.9369,2757.2,2756.7,1.42974]
[1643688307711,3.9369,2757.2,2756.7,2.42974]
[1643688307912,3.9369,2757.2,2756.7,0.523]
[1643688308116,3.9369,2757.2,2756.7,1.523]
[1643688308410,0.4425767,2756.9,2756.7,0.523]
[1643688308613,0.4425767,2756.9,2756.7,1.523]
[1643688308815,0.4425767,2756.9,2756.8,0.1812]
[1643688309012,3.9369,2757.2,2756.8,0.90668]
[1643688309216,6.0495,2757.3,2756.8,1.08788]
[1643688309453,1.2209,2757.4,2756.7,1.7042]
[1643688309654,1.2209,2757.4,2756.7,0.7042]
[1643688309856,1.52776288,2757.3,2756.7,0.7042]
[1643688310057,0.91195554,2757.2,2756.7,0.7042]
[1643688310258,0.41195554,2757.2,2756.7,0.7042]
[1643688310457,0.41195554,2757.2,2756.7,0.523]
[1643688310663,0.40436399,2757.1,2756.7,0.523]
[1643688310860,1.52790692,2757.0,2756.7,0.523]
[1643688311307,0.40436399,2757.1,2756.7,0.523]
[1643688311658,0.58566399,2757.1,2756.7,0.523]
[1643688313307,0.58566399,2757.1,2756.5,0.90684]
[1643688314608,0.82372901,2756.6,2756.5,0.90684]
[1643688314812,1.18234561,2756.6,2756.5,0.90684]
[1643688315410,1.18234561,2756.6,2756.4,1.0]
[1643688315614,1.18234561,2756.6,2756.3,2.81354]
[1643688316312,1.18234561,2756.6,2756.4,1.0]
[1643688316712,1.18234561,2756.6,2756.3,1.81354]
[1643688316960,1.18234561,2756.6,2756.0,0.1812]
[1643688317161,1.18234561,2756.6,2755.8,0.90707]
[1643688317162,0.1812,2756.5,2755.8,0.90707]
[1643688317363,1.18234561,2756.6,2755.8,0.90707]
[1643688317561,0.1814,2756.5,2755.8,0.90707]
[1643688317960,0.44300575,2755.9,2755.8,0.90707]
[1643688318161,0.1814,2756.5,2755.8,0.90707]
[1643688318162,1.3692,2756.5,2755.8,0.90707]
[1643688319966,1.3692,2756.5,2755.8,1.20707]
[1643688319967,1.1878,2756.5,2755.8,1.20707]
[1643688320169,1.1878,2756.5,2755.9,2.45931116]
[1643688320370,0.40591944,2756.7,2756.0,0.9068]
[1643688320570,9.0767,2757.3,2756.1,0.7042]
[1643688320801,9.0767,2757.3,2756.2,0.523]
[1643688321007,0.8919327,2757.0,2756.3,0.1812]
[1643688321212,0.8919327,2757.0,2756.4,0.523]
[1643688321409,0.8919327,2757.0,2756.4,1.42978]
[1643688321619,0.41698805,2756.5,2756.4,1.42978]
[1643688321914,0.41698805,2756.5,2756.4,2.42978]
[1643688322116,0.41698805,2756.5,2756.4,1.42978]
[1643688322313,0.41698805,2756.5,2756.4,2.42978]
[1643688322516,0.8919327,2757.0,2756.4,1.42978]
[1643688322714,0.8919327,2757.0,2756.4,2.42978]
[1643688322939,0.8919327,2757.0,2756.4,1.42978]
[1643688323618,0.33329847,2756.7,2756.4,1.42978]
[1643688323814,0.33329847,2756.7,2756.4,2.42978]
[1643688324115,0.33329847,2756.7,2756.4,1.42978]
[1643688324316,0.33329847,2756.7,2756.4,2.42978]
[1643688324558,0.33329847,2756.7,2756.4,1.42978]
[1643688324757,0.8919327,2757.0,2756.4,2.42978]
[1643688324958,2.25060264,2757.2,2756.4,1.42978]
[1643688325163,3.59740791,2757.1,2756.2,0.1812]
[1643688325362,8.90793975,2757.3,2756.3,0.90688]
[1643688325363,0.1812,2757.0,2756.3,0.90688]
[1643688325558,0.1812,2757.2,2756.3,0.90688]
[1643688325760,1.70926057,2757.1,2756.2,2.25060264]
[1643688325961,0.1812,2757.0,2756.2,2.25060264]
[1643688326170,0.39520722,2756.8,2756.2,2.25060264]
[1643688326363,0.39520722,2756.8,2756.2,0.1812]
[1643688327165,0.39520722,2756.8,2756.2,1.08809]
[1643688327366,1.1346,2756.9,2756.2,0.1812]
[1643688327367,0.44962928,2756.3,2756.2,0.1812]
[1643688327666,1.1346,2756.9,2756.2,0.1812]
[1643688328064,1.1346,2756.9,2756.1,0.1812]
[1643688328311,2.0416423,2756.9,2756.1,0.1812]
[1643688328516,2.0416423,2756.9,2755.9,2.08822]
[1643688328720,0.43412718,2756.5,2755.9,3.02375188]
[1643688329250,1.32818446,2756.5,2755.9,3.02375188]
[1643688329422,1.32818446,2756.5,2755.9,1.08822]
[1643688330018,1.32818446,2756.5,2755.9,2.08822]
[1643688331017,1.32818446,2756.5,2755.9,1.08822]
[1643688331224,0.1814,2756.4,2755.8,7.44]
[1643688331518,0.43822856,2755.9,2755.8,7.44]
[1643688333169,0.43822856,2755.9,2755.0,0.29594591]
[1643688333170,4.29192033,2755.9,2755.0,0.29594591]
[1643688333372,2.88325033,2755.9,2754.6,0.1814]
[1643688333571,1.1727,2755.8,2754.6,0.7044]
[1643688333777,0.1814,2755.7,2754.7,1.08878]
[1643688333973,0.43822856,2755.9,2754.8,0.523]
[1643688334172,0.40499218,2755.4,2754.9,0.1814]
[1643688334372,0.40499218,2755.4,2754.9,0.7044]
[1643688334973,1.1727,2755.8,2754.9,0.7044]
[1643688335704,1.1727,2755.8,2754.9,1.91168]
[1643688335909,1.1727,2755.8,2754.9,1.3044]
[1643688336105,1.1727,2755.8,2755.4,0.43455698]
[1643688336309,1.1727,2755.8,2755.3,0.523]
[1643688337410,1.1727,2755.8,2755.3,1.523]
[1643688337811,1.1727,2755.8,2755.3,0.523]
[1643688338113,0.86000559,2755.8,2755.4,0.1814]
[1643688338310,0.86000559,2755.8,2755.5,0.523]
[1643688338512,0.86000559,2755.8,2755.6,0.523]
[1643688338513,3.02992548,2755.8,2755.6,0.523]
[1643688338713,3.02335085,2755.8,2755.6,0.523]
[1643688338919,3.09547089,2755.8,2755.6,0.523]
[1643688339213,3.43012609,2755.7,2755.0,1.1814]
[1643688339472,0.9073527,2755.6,2755.1,0.523]
[1643688339677,0.9073527,2755.6,2755.2,0.523]
[1643688339678,0.77624947,2755.3,2755.2,0.523]
[1643688340078,0.77624947,2755.3,2755.0,0.1814]
[1643688340280,0.44528417,2755.2,2755.0,0.1814]
[1643688340890,0.77624947,2755.3,2755.0,0.1814]
[1643688341077,0.1814,2755.5,2755.0,0.1814]
[1643688341277,3.5721,2755.6,2755.0,0.1814]
[1643688341278,3.7535,2755.6,2755.0,0.1814]
[1643688341879,0.44354849,2755.5,2754.9,1.0]
[1643688342078,1.38105931,2755.5,2754.8,2.3378]
[1643688343312,1.38105931,2755.5,2755.1,0.9074]
[1643688345016,1.38105931,2755.5,2754.9,1.0]
[1643688345213,1.38105931,2755.5,2754.6,0.7044]
[1643688348062,3.7535,2755.6,2754.6,0.7044]
[1643688348265,0.1814,2755.7,2754.6,3.76495568]
[1643688348466,3.8531,2756.2,2754.6,3.76495568]
[1643688348467,1.2052,2756.2,2754.9,6.54400181]
[1643688348668,1.2052,2756.2,2755.0,0.7044]
[1643688348868,1.2052,2756.2,2755.0,1.7044]
[1643688349064,1.2052,2756.2,2755.9,0.37918092]
[1643688349464,8.32759994,2756.6,2755.9,0.37918092]
[1643688349668,8.32759994,2756.6,2756.0,0.523]
[1643688349669,8.14619994,2756.6,2756.0,0.523]
[1643688349869,0.27639994,2756.6,2756.0,0.523]
[1643688350268,1.1956,2756.8,2756.0,0.523]
[1643688350470,1.1956,2756.8,2756.4,0.43461271]
[1643688351115,1.1956,2756.8,2756.3,0.523]
[1643688351519,1.1956,2756.8,2756.3,1.4298326]
[1643688351717,1.1956,2756.8,2756.4,0.3]
[1643688352117,1.1956,2756.8,2756.4,0.71312155]
[1643688352318,0.1814,2757.0,2756.4,0.71312155]
[1643688352523,0.1814,2757.0,2756.4,0.3]
[1643688353563,1.70959388,2756.9,2755.9,0.1812]
[1643688353725,4.25667419,2756.8,2756.0,0.823]
[1643688353923,4.25667419,2756.8,2755.7,1.0]
[1643688353924,1.52826388,2756.7,2755.7,1.3]
[1643688354225,2.44972755,2756.6,2755.7,1.6]
[1643688354477,0.1814,2756.6,2755.7,1.7814]
[1643688354666,1.1714,2756.9,2755.7,1.4814]
[1643688354874,1.11228852,2756.2,2755.7,0.3]
[1643688355084,4.12429599,2756.8,2755.6,0.823]
[1643688355085,1.3328,2756.7,2755.6,0.823]
[1643688355264,3.79583615,2756.6,2755.6,0.823]
[1643688355465,1.7098286,2756.5,2755.6,0.823]
[1643688355673,1.5284286,2756.4,2755.6,0.823]
[1643688355871,0.1814,2756.3,2755.6,0.823]
[1643688356271,2.30315695,2756.6,2755.6,0.823]
[1643688356272,0.1814,2756.5,2755.6,0.823]
[1643688356472,1.52846206,2756.4,2755.6,0.823]
[1643688356706,0.1814,2756.3,2755.6,1.21012229]
[1643688357172,0.1814,2756.3,2755.6,0.823]
[1643688358210,0.1814,2756.3,2755.6,1.123]
[1643688358712,0.85000318,2756.4,2755.7,0.1814]
[1643688358912,0.85000318,2756.4,2755.6,1.123]
[1643688359917,0.85000318,2756.4,2755.6,1.48937773]
[1643688359918,0.34152074,2756.3,2755.6,1.48937773]
[1643688360117,0.34152074,2756.3,2755.6,0.823]
[1643688360316,0.34152074,2756.3,2755.6,0.90917497]
[1643688361114,0.85000318,2756.4,2755.6,0.90917497]
[1643688361313,0.85000318,2756.4,2755.7,0.1814]
[1643688362169,0.38072442,2756.1,2755.7,0.1814]
[1643688363167,0.85000318,2756.4,2755.7,0.1814]
[1643688363366,0.1814,2756.3,2755.6,0.90917497]
[1643688363567,0.1814,2756.3,2755.6,0.38617497]
[1643688363867,0.1814,2756.3,2755.6,0.39617497]
[1643688364165,0.1814,2756.3,2755.8,0.39141077]
[1643688364367,0.85000318,2756.4,2755.8,0.39141077]
[1643688364368,0.1814,2756.4,2755.8,0.39141077]
[1643688364568,0.1814,2756.6,2755.8,0.69141077]
[1643688365369,0.95378545,2756.6,2755.8,2.67071176]
[1643688365815,0.95378545,2756.6,2755.9,1.0]
[1643688366009,0.77238545,2756.6,2755.9,2.207022]
[1643688366209,0.77238545,2756.6,2755.9,2.507022]
[1643688366810,0.77238545,2756.6,2756.0,1.0]
[1643688367212,0.77238545,2756.6,2755.9,1.507022]
[1643688367440,0.77238545,2756.6,2755.9,1.688422]
[1643688367613,0.77238545,2756.6,2755.9,2.688422]
[1643688367824,0.77238545,2756.6,2755.9,1.688422]
[1643688368011,0.77238545,2756.6,2756.0,1.0]
[1643688368216,0.77238545,2756.6,2755.9,1.688422]
[1643688368612,1.52833122,2756.5,2755.9,1.688422]
[1643688369468,1.52833122,2756.5,2755.9,0.7814]
[1643688369869,1.52833122,2756.5,2755.9,0.3]
[1643688370075,1.52833122,2756.5,2755.9,1.2070259]
[1643688370471,1.3328,2756.7,2755.9,1.5070259]
[1643688370679,1.52831087,2756.6,2755.9,3.44394181]
[1643688370873,1.52831087,2756.6,2755.9,3.14394181]
[1643688371071,1.52831087,2756.6,2756.0,1.0]
[1643688371873,1.52831087,2756.6,2755.9,1.2070259]
[1643688372780,1.52831087,2756.6,2755.9,2.2070259]
[1643688372979,1.52831087,2756.6,2755.9,1.2070259]
[1643688373214,1.52831087,2756.6,2755.9,1.3]
[1643688373415,1.52831087,2756.6,2755.8,0.91196036]
[1643688373619,1.52831087,2756.6,2755.8,0.73056036]
[1643688374015,1.52831087,2756.6,2755.9,3.00545674]
[1643688374240,1.52831087,2756.6,2756.0,1.1814]
[1643688374425,22.27619997,2757.2,2756.1,2.62142194]
[1643688374623,22.27619997,2757.2,2756.2,0.18516208]
[1643688374624,1.52815392,2757.1,2756.2,0.18516208]
[1643688374820,1.52815392,2757.1,2756.3,0.823]
[1643688375018,1.96459513,2757.6,2756.4,0.1812]
[1643688375225,1.5279696,2757.5,2756.7,0.90657]
[1643688375422,2.44465781,2757.7,2756.9,0.9065397]
[1643688375616,2.44465781,2757.7,2757.0,0.523]
[1643688375617,1.52780306,2757.6,2757.0,0.523]
[1643688375817,1.52780306,2757.6,2757.0,0.823]
[1643688376315,1.52780306,2757.6,2757.4,1.35048203]
[1643688376517,1.52780306,2757.6,2757.5,0.523]
[1643688376716,1.52780306,2757.7,2757.4,1.06698341]
[1643688376997,1.52780306,2757.7,2757.5,0.523]
[1643688377168,1.52780306,2757.8,2757.6,1.96152546]
[1643688377371,2.44465781,2758.0,2757.7,1.4294]
[1643688377564,1.52762125,2757.9,2757.7,1.4294]
[1643688377772,1.52762125,2757.9,2757.7,2.4294]
[1643688377968,1.52762125,2757.9,2757.7,1.4294]
[1643688378167,1.52762125,2757.9,2757.8,0.3586554]
[1643688378368,1.52762125,2757.9,2757.8,1.523]
[1643688378871,1.52762125,2758.1,2757.8,0.523]
[1643688379071,1.52762125,2758.0,2757.8,1.523]
[1643688379271,1.52762125,2757.9,2757.8,0.523]
[1643688379511,3.22572811,2758.3,2757.8,0.523]
[1643688379512,1.52762125,2758.2,2757.8,0.523]
[1643688380470,1.52762125,2758.2,2757.9,0.9063818]
[1643688380712,1.52762125,2758.2,2757.9,1.7293818]
[1643688380914,1.52762125,2758.2,2758.1,0.43384467]
[1643688381120,1.52762125,2758.2,2757.9,1.7293818]
[1643688381317,1.52762125,2758.2,2757.9,0.823]
[1643688382119,1.52762125,2758.2,2758.0,0.33336683]
[1643688382320,1.52762125,2758.2,2758.0,1.15636683]
[1643688382525,2.44465781,2758.3,2758.1,1.92837872]
[1643688382718,3.625,2758.7,2758.1,1.92837872]
[1643688382719,6.25085781,2758.7,2758.1,1.0]
[1643688382924,1.52745451,2758.6,2758.1,1.0]
[1643688383119,1.52745451,2758.6,2758.0,2.15636683]
[1643688383321,0.01108362,2758.1,2758.0,2.15636683]
[1643688383521,0.01108362,2758.1,2758.0,4.11603834]
[1643688383721,0.01108362,2758.1,2758.0,2.15636683]
[1643688384664,0.01108362,2758.1,2758.0,3.15740313]
[1643688384863,0.01108362,2758.1,2758.0,4.15740313]
[1643688385068,0.01108362,2758.1,2758.0,4.11701602]
[1643688385265,0.01108362,2758.1,2758.0,4.10134416]
[1643688385667,0.01108362,2758.1,2758.0,10.63534416]
[1643688387779,2.44465781,2759.2,2758.3,0.90593]
[1643688387980,2.44465781,2759.2,2759.0,6.534]
[1643688388220,2.44465781,2759.2,2759.1,0.523]
[1643688388414,2.44465781,2759.2,2759.1,1.823]
[1643688388712,2.44465781,2759.2,2759.1,2.24634014]
[1643688388922,2.44465781,2759.2,2759.1,0.823]
[1643688389114,1.0999,2759.3,2759.1,0.823]
[1643688389919,0.1812,2759.2,2759.1,0.823]
[1643688390117,1.0999,2759.3,2759.1,0.823]
[1643688390318,1.0999,2759.3,2759.2,0.3]
[1643688390519,1.0999,2759.3,2759.1,0.3]
[1643688390716,1.0999,2759.3,2759.1,1.3]
[1643688390915,1.0999,2759.3,2759.1,0.3]
[1643688391115,1.0999,2759.3,2759.0,1.3]
[1643688391317,1.0999,2759.3,2759.0,0.3]
[1643688391531,1.0999,2759.3,2759.0,1.15]
[1643688391716,1.0999,2759.3,2759.0,0.3]
[1643688391959,1.0999,2759.3,2759.0,2.21659291]
[1643688392164,1.0999,2759.3,2759.0,0.3]
[1643688392367,0.6499,2759.3,2759.0,0.3]
[1643688392564,0.6499,2759.3,2759.1,0.523]
[1643688395168,0.6499,2759.3,2759.2,1.91376808]
[1643688395368,0.6499,2759.3,2759.2,0.523]
[1643688395566,0.6499,2759.3,2759.2,0.823]
[1643688395819,0.6499,2759.3,2759.2,2.73980241]
[1643688396020,0.1812,2759.9,2759.2,3.90142826]
[1643688396218,7.44,2760.0,2759.3,1.0]
[1643688396419,7.44,2760.0,2759.4,0.523]
[1643688397019,2.62345803,2760.1,2759.8,0.41620769]
[1643688397219,2.62345803,2760.1,2759.9,0.523]
[1643688397418,2.62345803,2760.1,2759.3,2.50569]
[1643688397419,2.62345803,2760.1,2760.0,0.523]
[1643688397917,4.1311,2760.1,2760.0,0.523]
[1643688398322,0.1811,2760.1,2759.3,3.67842826]
[1643688398517,0.87070437,2760.0,2759.4,0.862518]
[1643688398768,0.1811,2760.1,2759.4,0.862518]
[1643688399563,0.1811,2760.1,2759.4,0.523]
[1643688400561,0.91123686,2760.0,2759.4,0.523]
[1643688401763,0.91123686,2760.0,2759.4,0.823]
[1643688402166,0.91123686,2760.0,2759.4,0.523]
[1643688402365,0.1811,2760.1,2759.4,0.823]
[1643688402567,0.10199997,2760.2,2759.4,2.80874271]
[1643688402767,4.08550854,2760.7,2759.5,1.0]
[1643688403009,0.38147331,2760.3,2759.6,0.523]
[1643688403213,0.28147331,2760.3,2759.6,0.523]
[1643688403423,1.69833,2761.0,2759.8,13.084]
[1643688403626,6.47183983,2761.8,2759.8,13.084]
[1643688403627,0.2231396,2762.1,2760.9,7.54611712]
[1643688403820,1.36648859,2761.9,2761.8,4.09181803]
[1643688404022,0.20371181,2762.5,2761.8,6.61216257]
[1643688404216,0.20371181,2762.5,2761.9,3.94464454]
[1643688404217,0.04888442,2762.5,2761.9,3.94464454]
[1643688404426,0.01,2763.7,2762.4,6.54675694]
[1643688404623,2.2122929,2763.9,2762.4,6.54675694]
[1643688404624,2.2122929,2763.9,2763.6,6.534]
[1643688404923,0.04942466,2764.8,2763.8,6.73140698]
[1643688405144,0.04942466,2764.8,2764.2,6.534]
[1643688405325,0.20831023,2765.7,2764.6,6.534]
[1643688405518,1.47309548,2765.6,2765.0,0.01265006]
[1643688405717,0.01,2765.7,2765.1,0.18102]
[1643688405924,0.01,2765.7,2764.7,2.5037457]
[1643688405925,2.10734454,2765.7,2765.2,6.534]
[1643688406116,0.01216058,2765.3,2764.5,0.523]
[1643688406517,0.84074155,2764.8,2764.5,0.523]
[1643688406717,0.01290944,2765.1,2764.5,0.523]
[1643688406965,0.01287097,2765.4,2764.5,0.523]
[1643688407171,0.99,2765.3,2764.5,0.523]
[1643688407368,0.15671041,2765.4,2764.5,0.523]
[1643688407572,0.01287097,2765.4,2764.5,0.823]
[1643688407769,0.41571813,2765.5,2764.5,0.823]
[1643688407770,0.41571813,2765.5,2764.6,0.3]
[1643688407972,0.41571813,2765.5,2764.6,2.84184601]
[1643688408175,1.24377094,2765.8,2764.6,3.36484601]
[1643688408176,1.0999315,2765.8,2764.6,3.36484601]
[1643688408471,1.0999315,2765.8,2764.7,25.10906454]
[1643688408768,1.0999315,2765.8,2764.8,0.823]
[1643688408982,1.0499315,2765.8,2764.9,0.36172]
[1643688409176,0.05,2766.8,2765.7,6.534]
[1643688409378,0.01546088,2768.0,2766.7,0.01250095]
[1643688409570,0.00301,2768.0,2767.0,6.55]
[1643688409770,0.00301,2768.0,2767.1,1.523]
[1643688409970,0.14383944,2768.1,2767.1,0.823]
[1643688410171,0.38193091,2767.8,2766.8,7.2286]
[1643688410416,0.74394168,2767.0,2766.8,7.2286]
[1643688410817,0.74394168,2767.0,2765.9,0.20006487]
[1643688410818,0.74394168,2767.0,2765.9,0.1806]
[1643688411023,0.14383944,2766.9,2765.9,0.1806]
[1643688411461,0.8726012,2766.2,2765.9,0.1806]
[1643688412024,0.1807,2766.1,2764.7,0.18102]
[1643688412223,0.01209719,2765.5,2764.6,7.0]
[1643688412422,0.1807,2765.4,2764.6,7.0]
[1643688412623,0.1807,2765.4,2764.5,0.86962232]
[1643688412823,0.1807,2766.0,2764.5,0.86962232]
[1643688413023,0.32453944,2766.0,2764.5,0.86962232]
[1643688413226,2.58152414,2765.9,2764.5,0.86962232]
[1643688413425,0.1807,2765.8,2764.7,0.01206226]
[1643688413624,0.13819997,2766.1,2764.7,0.01206226]
[1643688413625,0.1807,2766.0,2765.0,0.44639636]
[1643688414025,0.1807,2766.0,2764.8,0.36172]
[1643688414026,2.78532042,2766.0,2764.8,0.36172]
[1643688414230,0.1807,2766.7,2765.9,0.004]
[1643688414470,0.1807,2766.7,2766.0,0.1807]
[1643688414763,2.27735591,2767.3,2765.9,0.012]
[1643688414764,0.31889997,2767.3,2765.9,0.012]
[1643688414963,0.37082837,2766.0,2765.9,0.012]
[1643688415572,0.1807,2766.2,2765.9,0.012]
[1643688415763,0.14383944,2766.9,2765.9,0.012]
[1643688415962,0.1807,2766.8,2765.9,0.012]
[1643688416365,0.1807,2767.2,2766.0,0.7037]
[1643688416562,0.43361721,2766.7,2766.0,0.7037]
[1643688416780,0.73993394,2766.5,2766.0,1.3037]
[1643688416964,0.73993394,2766.5,2766.0,0.4807]
[1643688417666,0.43361721,2766.7,2766.0,0.4807]
[1643688417867,0.1807,2767.2,2766.0,0.3]
[1643688418213,0.1807,2767.2,2766.1,2.42797135]
[1643688418619,0.1807,2767.2,2766.1,0.6]
[1643688418813,0.1807,2767.2,2766.1,1.6]
[1643688418814,0.82777687,2766.9,2766.1,1.6]
[1643688419015,0.82777687,2766.9,2766.1,0.3]
[1643688419217,0.82777687,2766.9,2766.2,0.3]
[1643688419424,0.82777687,2766.9,2766.0,0.4807]
[1643688419425,0.005,2766.9,2766.3,2.31985594]
[1643688419617,0.14383944,2768.0,2766.4,0.434]
[1643688419618,0.005,2767.4,2766.4,0.434]
[1643688419817,0.1807,2768.0,2766.5,0.1807]
[1643688420228,0.1857,2768.0,2766.5,0.1807]
[1643688420419,0.81035527,2767.1,2766.5,0.1807]
[1643688420618,0.86415347,2766.6,2766.3,1.3]
[1643688420820,0.1857,2767.1,2766.3,0.3]
[1643688421018,0.34787714,2767.2,2766.3,0.3]
[1643688421218,0.34787714,2767.2,2766.1,0.45019997]
[1643688421417,0.34787714,2767.2,2766.1,0.15019997]
[1643688421620,0.14383944,2767.4,2766.1,0.15019997]